bitfinex/quotes_ETHUSD_20250323
["timestamp","ask_amount","ask_price","bid_price","bid_amount"]
[1742702327326,4.97598,2009.7,2009.4,28.95137108]
[1742702330528,4.97598,2009.7,2009.5,26.308]
[1742702331232,4.97598,2009.7,2009.5,28.06802914]
[1742702331440,4.97598,2009.7,2009.5,26.308]
[1742702335229,9.95207,2009.7,2009.5,26.308]
[1742702335433,9.95207,2009.7,2009.6,26.308]
[1742702335434,4.97598,2009.7,2009.6,26.308]
[1742702340146,9.95208,2009.7,2009.5,26.308]
[1742702340629,4.97611,2009.6,2009.5,26.308]
[1742702370472,5.80706,2010.2,2009.7,3.0]
[1742702370775,10.78094,2010.4,2009.9,1.75993429]
[1742702370956,5.80661,2010.4,2010.0,1.75993429]
[1742702371267,4.97465,2010.2,2009.8,8.47557]
[1742702371466,4.97448,2010.3,2009.9,1.75993429]
[1742702371638,9.94909,2010.3,2009.9,1.75993429]
[1742702371839,4.97448,2010.3,2009.9,6.73528429]
[1742702372267,4.97448,2010.3,2010.0,1.75993429]
[1742702372571,4.97448,2010.3,2010.0,2.25993429]
[1742702373471,4.97448,2010.3,2010.0,0.5]
[1742702373668,4.97448,2010.3,2010.0,2.25993429]
[1742702373867,4.97448,2010.3,2010.0,0.5]
[1742702374373,4.97465,2010.2,2009.9,1.75993429]
[1742702375568,4.97465,2010.2,2009.8,5.25993429]
[1742702376045,9.94949,2010.2,2009.8,5.25993429]
[1742702376376,4.97465,2010.2,2009.9,1.75993429]
[1742702376541,9.9495,2010.2,2009.8,5.25993429]
[1742702376874,4.97488,2010.1,2009.8,6.25872389]
[1742702377263,4.97488,2010.1,2009.8,5.25993429]
[1742702378076,9.94998,2010.1,2009.8,5.25993429]
[1742702378380,9.94989,2010.1,2009.8,5.25993429]
[1742702379177,4.97488,2010.1,2009.8,5.25993429]
[1742702379350,9.94987,2010.1,2009.8,5.25993429]
[1742702379783,4.97512,2010.0,2009.9,26.304]
[1742702381871,4.97459,2010.3,2009.9,28.06393429]
[1742702382075,4.97459,2010.3,2010.0,2.25993429]
[1742702382076,4.97441,2010.3,2010.0,2.25993429]
[1742702382577,5.74103,2010.4,2010.1,1.75993429]
[1742702382578,9.94848,2010.4,2010.1,1.75993429]
[1742702382749,4.97423,2010.4,2010.1,1.75993429]
[1742702382952,4.97423,2010.4,2010.2,1.75993429]
[1742702383473,4.97384,2010.6,2010.3,0.5]
[1742702383675,9.94763,2010.6,2010.3,2.25993429]
[1742702383876,9.94763,2010.6,2010.3,0.5]
[1742702384856,4.97389,2010.5,2010.3,0.5]
[1742702385287,4.97379,2010.6,2010.3,0.5]
[1742702385789,9.94756,2010.6,2010.3,0.5]
[1742702385987,4.97377,2010.6,2010.3,0.5]
[1742702386186,9.94752,2010.6,2010.3,0.5]
[1742702386489,9.94755,2010.6,2010.3,0.5]
[1742702386660,4.97374,2010.6,2010.3,0.5]
[1742702388164,9.94752,2010.6,2010.3,0.5]
[1742702388768,4.97388,2010.5,2010.3,0.5]
[1742702389271,4.97374,2010.6,2010.3,0.5]
[1742702389474,4.97374,2010.6,2010.4,26.299]
[1742702391091,9.94754,2010.6,2010.4,26.299]
[1742702391274,9.9475,2010.6,2010.4,26.299]
[1742702391469,4.97388,2010.5,2010.4,26.299]
[1742702391685,5.74768,2010.5,2010.4,26.299]
[1742702392794,4.97388,2010.5,2010.4,26.299]
[1742702395399,4.97374,2010.6,2010.4,26.299]
[1742702395895,0.7738,2010.9,2010.5,6.73369429]
[1742702396072,0.7738,2010.9,2010.6,1.75993429]
[1742702396073,4.973,2010.9,2010.6,1.75993429]
[1742702396701,4.973,2010.9,2010.5,7.23381429]
[1742702396997,9.94602,2010.9,2010.5,2.25993429]
[1742702397497,4.97315,2010.8,2010.5,2.25993429]
[1742702402473,4.97289,2010.9,2010.6,1.75993429]
[1742702402674,0.005,2011.0,2010.8,1.75993429]
[1742702403077,0.005,2011.0,2010.9,0.5]
[1742702403389,4.97781,2011.0,2010.6,2.25993429]
[1742702403591,4.97781,2011.0,2010.6,3.86549933]
[1742702403804,5.68084,2010.9,2010.6,0.36549933]
[1742702403974,5.68084,2010.9,2010.5,5.30993429]
[1742702404323,4.9777,2011.0,2010.6,1.75993429]
[1742702404477,4.9777,2011.0,2010.7,0.5]
[1742702404673,4.9777,2011.0,2010.8,26.293]
[1742702405393,0.005,2011.0,2010.8,26.293]
[1742702405599,4.97766,2011.0,2010.8,26.293]
[1742702405973,4.97289,2010.9,2010.8,26.293]
[1742702406188,7.49062429,2010.9,2010.8,26.293]
[1742702409211,7.47475943,2010.9,2010.8,26.293]
[1742702409590,9.94844,2010.4,2010.2,1.517442]
[1742702409801,4.9742,2010.4,2010.3,26.292]
[1742702410879,5.732,2010.4,2010.3,26.292]
[1742702411081,8.66238807,2010.4,2010.3,26.292]
[1742702411279,5.732,2010.4,2010.3,26.292]
[1742702411706,4.9742,2010.4,2010.3,26.292]
[1742702412009,4.9739,2010.5,2010.3,26.292]
[1742702412801,4.97364,2010.6,2010.3,26.792]
[1742702413409,5.73095,2010.8,2010.3,26.792]
[1742702413613,4.97406,2010.5,2010.3,26.292]
[1742702413984,4.97405,2010.5,2010.3,26.292]
[1742702414208,4.97413,2010.4,2010.3,26.292]
[1742702414512,4.97405,2010.5,2010.3,26.292]
[1742702415095,4.97373,2010.6,2010.3,26.292]
[1742702415614,9.94761,2010.6,2010.3,26.292]
[1742702416021,4.97389,2010.5,2010.3,26.292]
[1742702417993,4.97413,2010.4,2010.3,26.292]
[1742702418618,4.97392,2010.5,2010.3,26.292]
[1742702418828,4.97413,2010.4,2010.3,26.292]
[1742702419503,5.73633,2010.4,2010.3,26.292]
[1742702421613,8.73633,2010.4,2010.3,26.292]
[1742702424650,4.97611,2009.6,2009.5,0.5]
[1742702424797,4.9759,2009.7,2009.5,26.797]
[1742702425836,4.97578,2009.8,2009.5,26.797]
[1742702426131,9.95152,2009.8,2009.5,26.797]
[1742702426300,4.97573,2009.8,2009.5,29.72738807]
[1742702426497,9.95158,2009.8,2009.5,29.72738807]
[1742702426944,4.97611,2009.6,2009.5,26.297]
[1742702427226,4.97601,2009.7,2009.5,26.297]
[1742702427827,4.97601,2009.7,2009.5,29.22738807]
[1742702428540,4.9756,2009.9,2009.5,29.22738807]
[1742702428709,9.95118,2009.9,2009.6,0.5]
[1742702429546,4.97564,2009.8,2009.6,0.5]
[1742702429944,4.97586,2009.7,2009.5,26.297]
[1742702430109,4.97611,2009.6,2009.5,26.297]
[1742702430421,8.71929807,2009.6,2009.5,26.297]
[1742702431744,3.74318807,2009.6,2009.5,26.297]
[1742702432347,8.71929807,2009.6,2009.5,26.297]
[1742702432714,0.8128,2009.8,2009.3,2.93038807]
[1742702432944,0.8128,2010.1,2009.4,0.5]
[1742702433138,3.80219188,2010.0,2009.4,0.5]
[1742702434720,3.8128,2010.1,2009.4,0.5]
[1742702435120,0.8128,2009.9,2009.4,0.5]
[1742702435750,0.8128,2010.2,2009.5,2.93038807]
[1742702436122,2.93038807,2010.1,2009.5,2.93038807]
[1742702436421,3.80791976,2010.1,2009.5,2.93038807]
[1742702437319,0.8128,2010.2,2009.5,7.90672807]
[1742702437945,0.8128,2010.2,2009.5,2.93038807]
[1742702439528,0.8128,2010.0,2009.4,3.5]
[1742702441233,0.8128,2010.0,2009.4,3.0]
[1742702441554,0.8128,2009.8,2009.4,26.305]
[1742702441728,0.8128,2009.7,2009.4,26.305]
[1742702442359,3.74318807,2009.7,2009.4,26.305]
[1742702442657,2.93038807,2009.7,2009.4,26.305]
[1742702442857,2.93038807,2009.5,2009.4,26.305]
[1742702443030,7.97662,2009.4,2008.8,26.305]
[1742702443224,3.80229388,2009.5,2008.8,26.305]
[1742702443225,0.8128,2009.3,2008.8,26.305]
[1742702443430,0.8128,2009.5,2008.9,7.90820807]
[1742702443630,0.8128,2009.5,2008.9,12.88594807]
[1742702443830,0.8128,2009.5,2008.9,7.90812807]
[1742702444464,0.8128,2009.5,2009.0,0.04976872]
[1742702444777,0.8128,2009.5,2008.9,7.90812807]
[1742702445857,0.8128,2009.5,2009.0,0.04976875]
[1742702446064,0.8128,2009.5,2008.9,7.90812807]
[1742702446535,0.8128,2009.5,2008.9,3.0]
[1742702446735,0.8186,2009.3,2008.8,26.305]
[1742702448842,0.8186,2009.2,2008.8,26.305]
[1742702449564,3.74898807,2009.2,2008.8,26.305]
[1742702449865,0.8186,2009.1,2008.8,26.305]
[1742702453062,3.74898807,2009.1,2008.8,26.305]
[1742702453265,0.8186,2008.9,2008.8,26.305]
[1742702454178,2.93038807,2008.9,2008.8,26.305]
[1742702454339,3.74898807,2008.9,2008.8,26.305]
[1742702454666,0.8186,2008.9,2008.8,26.305]
[1742702458869,0.8186,2008.9,2008.4,29.24738807]
[1742702459077,1.77908178,2008.9,2008.4,29.24738807]
[1742702464577,0.8186,2008.9,2008.4,29.24738807]
[1742702478490,0.8186,2008.9,2008.4,26.317]
[1742702480082,0.7938,2008.5,2008.4,26.317]
[1742702489017,0.7938,2008.5,2008.1,26.322]
[1742702489218,3.71748807,2008.4,2008.1,26.322]
[1742702490141,4.08923688,2008.4,2008.1,26.322]
[1742702490315,0.7871,2008.3,2008.1,26.322]
[1742702491938,8.28122688,2008.4,2008.1,26.322]
[1742702491939,3.71748807,2008.2,2008.1,26.322]
[1742702494135,6.71748807,2008.2,2008.1,26.322]
[1742702495416,6.66769223,2008.2,2008.1,26.322]
[1742702495623,8.41728817,2008.2,2008.1,26.322]
[1742702496131,13.39686817,2008.2,2008.1,26.322]
[1742702498043,8.41728817,2008.2,2008.1,26.322]
[1742702501126,13.39686817,2008.2,2008.1,26.322]
[1742702505545,8.41728817,2008.2,2008.1,26.322]
[1742702506349,0.7716,2007.8,2007.5,26.33]
[1742702508554,5.93038807,2007.9,2007.5,26.33]
[1742702508751,0.7716,2008.0,2007.5,26.33]
[1742702509238,3.70198807,2008.0,2007.5,26.33]
[1742702516178,2.93038807,2007.9,2007.5,26.33]
[1742702516380,3.70198807,2007.8,2007.5,26.33]
[1742702516589,2.93038807,2007.7,2007.5,26.33]
[1742702516889,0.7716,2007.8,2007.5,26.33]
[1742702517254,0.7716,2008.8,2008.1,4.97964]
[1742702517587,0.7716,2008.8,2008.2,0.5]
[1742702517877,0.37019881,2008.7,2008.2,0.5]
[1742702518183,3.30058688,2008.7,2008.2,0.5]
[1742702518879,0.7766,2008.6,2008.0,0.5]
[1742702519051,0.7766,2008.6,2008.0,0.96260458]
[1742702519851,0.7766,2008.6,2008.0,5.94266458]
[1742702520483,0.7766,2008.6,2008.0,5.48006]
[1742702520851,0.7766,2008.6,2008.0,0.5]
[1742702521051,1.68791257,2008.6,2008.0,0.5]
[1742702521280,1.68791257,2008.6,2008.0,5.48007]
[1742702521478,0.7766,2008.6,2008.0,5.48007]
[1742702522263,0.7766,2008.6,2008.0,0.5]
[1742702525888,0.7766,2008.6,2008.0,5.48007]
[1742702526267,2.93038807,2008.7,2008.1,4.9797]
[1742702526473,3.7766,2008.8,2008.2,0.5]
[1742702526679,5.78034212,2008.8,2008.2,0.5]
[1742702530496,8.71073019,2008.8,2008.2,0.5]
[1742702533695,6.70698807,2008.8,2008.2,0.5]
[1742702542706,6.70698807,2008.8,2008.2,5.47949]
[1742702542910,6.70698807,2008.8,2008.2,0.5]
[1742702543150,2.53863316,2008.8,2008.2,2.26203316]
[1742702544221,1.76203316,2008.7,2008.2,0.5]
[1742702545533,1.76203316,2008.7,2008.2,26.825]
[1742702546125,2.53863316,2008.8,2008.2,28.58703316]
[1742702546336,1.76203316,2008.7,2008.2,26.825]
[1742702546810,1.76203316,2008.7,2008.2,28.58703316]
[1742702547129,1.76203316,2008.7,2008.2,26.825]
[1742702548637,0.7766,2008.8,2008.2,28.58703316]
[1742702548933,1.76203316,2008.7,2008.2,26.825]
[1742702549805,2.53863316,2008.8,2008.2,26.825]
[1742702550958,1.76203316,2008.7,2008.2,26.825]
[1742702551315,1.819742,2008.6,2008.2,26.825]
[1742702551524,1.76203316,2008.5,2008.2,26.825]
[1742702553038,2.32166736,2008.6,2008.2,26.825]
[1742702553559,0.5596342,2008.6,2008.2,26.825]
[1742702553731,4.76203316,2008.7,2008.2,26.825]
[1742702555545,1.76203316,2008.6,2008.2,26.825]
[1742702559972,1.76203316,2008.6,2008.2,0.5]
[1742702560429,4.76029057,2008.7,2008.2,0.5]
[1742702562178,9.73863057,2008.7,2008.2,0.5]
[1742702562358,1.54934306,2008.6,2008.2,0.5]
[1742702564040,3.31137622,2008.6,2008.2,0.5]
[1742702567066,5.57033316,2008.5,2008.0,26.325]
[1742702567271,1.76203316,2008.3,2008.0,26.325]
[1742702567852,2.57033316,2008.5,2008.0,26.325]
[1742702568169,1.76203316,2008.4,2008.0,26.325]
[1742702568371,3.78013878,2008.5,2008.0,26.325]
[1742702568538,1.76203316,2008.4,2008.0,26.325]
[1742702569775,4.76203316,2008.4,2008.0,26.325]
[1742702570449,3.0,2008.4,2008.1,0.5]
[1742702571660,5.97183878,2008.5,2008.1,0.5]
[1742702571844,2.97183878,2008.5,2008.1,0.5]
[1742702572050,4.76203316,2008.6,2008.1,0.5]
[1742702576796,4.76203316,2008.8,2008.3,2.26203316]
[1742702577167,1.76203316,2008.8,2008.3,0.5]
[1742702580197,1.76203316,2008.7,2008.3,0.5]
[1742702584816,7.90203316,2009.3,2008.7,0.5]
[1742702585015,7.90203316,2009.3,2008.6,1.76203316]
[1742702585016,1.76203316,2009.2,2008.8,0.5]
[1742702586717,0.3183964,2009.3,2008.8,0.5]
[1742702587019,1.76203316,2009.3,2008.8,0.5]
[1742702591123,1.76203316,2009.2,2008.8,0.5]
[1742702593630,1.76203316,2009.3,2008.8,1.76203316]
[1742702593806,4.76203316,2009.4,2008.9,0.5]
[1742702594005,3.0,2009.6,2008.9,1.76203316]
[1742702594311,1.76203316,2009.5,2009.0,0.5]
[1742702594516,1.76203316,2009.6,2009.1,2.26203316]
[1742702594718,4.76203316,2009.6,2009.1,0.5]
[1742702596227,3.0,2009.6,2009.2,1.76203316]
[1742702596427,3.0,2009.6,2009.1,2.26203316]
[1742702596624,4.76203316,2009.6,2009.1,2.26203316]
[1742702598111,4.76203316,2009.6,2009.1,0.5]
[1742702598311,1.76203316,2009.5,2009.1,0.5]
[1742702598932,4.76203316,2009.6,2009.1,0.5]
[1742702599945,3.0,2009.6,2009.1,2.26203316]
[1742702600138,4.76203316,2009.6,2009.1,2.26203316]
[1742702601420,4.76203316,2009.6,2009.1,0.5]
[1742702601747,1.76203316,2009.5,2009.1,0.5]
[1742702604348,4.76203316,2009.6,2009.1,0.5]
[1742702604550,6.31121748,2009.6,2009.1,0.5]
[1742702606451,4.76203316,2009.6,2009.1,0.5]
[1742702606631,4.76203316,2009.6,2009.1,2.26203316]
[1742702607152,4.76203316,2009.6,2009.1,0.5]
[1742702608255,1.76203316,2009.5,2009.1,0.5]
[1742702608640,1.76203316,2009.3,2009.1,0.5]
[1742702608847,2.23823648,2009.3,2008.9,26.821]
[1742702612473,1.76203316,2009.2,2008.9,26.821]
[1742702612850,1.76203316,2009.2,2008.9,26.321]
[1742702613769,1.76203316,2009.0,2008.9,26.321]
[1742702613973,6.31155548,2009.0,2008.9,26.321]
[1742702618773,11.28915548,2009.0,2008.9,26.321]
[1742702619348,4.54952232,2009.0,2008.9,26.321]
[1742702619670,2.23823648,2009.3,2008.9,26.321]
[1742702619876,5.23823648,2009.3,2008.9,26.321]
[1742702620559,5.23823648,2009.3,2008.8,2.26203316]
[1742702621161,3.47620332,2009.3,2008.8,0.5]
[1742702621769,3.0,2009.4,2008.9,0.5]
[1742702626388,3.0,2009.5,2009.0,0.5]
[1742702637408,3.74427198,2009.3,2008.9,26.317]
[1742702637602,3.0,2009.2,2008.9,26.317]
[1742702637807,2.93527198,2009.1,2008.9,26.317]
[1742702638394,3.8721182,2009.2,2008.9,26.317]
[1742702642890,3.0,2009.2,2008.9,26.817]
[1742702647524,3.0,2009.3,2008.9,26.817]
[1742702649194,4.76119823,2009.3,2008.9,0.5]
[1742702654899,9.73810823,2009.3,2008.9,0.5]
[1742702655099,4.76119823,2009.3,2008.9,0.5]
[1742702655698,0.97378582,2009.2,2008.9,0.5]
[1742702658633,3.0,2009.3,2008.9,0.5]
[1742702659006,4.76119823,2009.4,2008.9,0.5]
[1742702664737,4.76119823,2009.3,2008.9,0.5]
[1742702667850,1.76119823,2009.3,2008.9,0.5]
[1742702671020,4.76119823,2009.4,2008.9,0.5]
[1742702671257,5.81474605,2009.4,2008.9,0.5]
[1742702672665,1.76119823,2009.3,2008.9,0.5]
[1742702673356,1.76119823,2009.2,2008.9,0.5]
[1742702676066,1.76119823,2009.2,2008.7,31.79632]
[1742702677146,1.76119823,2009.2,2008.7,26.818]
[1742702678367,1.76119823,2009.2,2008.7,31.7963]
[1742702685100,1.76119823,2009.2,2008.7,0.5]
[1742702685101,4.15715661,2009.2,2008.7,0.5]
[1742702685413,2.55419823,2009.0,2008.4,5.47897]
[1742702685696,3.0,2008.9,2008.4,2.26119823]
[1742702688076,4.76119823,2008.9,2008.4,0.5]
[1742702690590,9.73905823,2008.9,2008.4,0.5]
[1742702690780,1.55097782,2008.8,2008.4,0.5]
[1742702693509,7.97786,2008.9,2008.4,2.26119823]
[1742702694011,9.73905823,2008.9,2008.4,0.5]
[1742702694306,4.76119823,2008.9,2008.4,0.5]
[1742702695690,3.0,2008.9,2008.4,2.26119823]
[1742702696683,4.76119823,2008.9,2008.4,0.5]
[1742702696981,6.31216305,2008.9,2008.4,0.5]
[1742702697384,1.15715661,2009.2,2008.7,0.5]
[1742702697385,10.89566484,2009.2,2008.7,0.5]
[1742702697733,4.76119823,2009.1,2008.7,0.5]
[1742702699111,1.76119823,2009.0,2008.7,0.5]
[1742702699417,1.76119823,2008.9,2008.5,26.821]
[1742702700817,1.76119823,2008.8,2008.5,26.821]
[1742702701121,2.51265205,2008.8,2008.5,26.821]
[1742702703921,2.51265205,2008.8,2008.5,26.321]
[1742702704419,1.76119823,2008.6,2008.5,26.321]
[1742702704719,6.73978823,2008.6,2008.5,26.321]
[1742702704892,1.76119823,2008.6,2008.5,26.321]
[1742702705098,2.76398926,2008.6,2008.5,26.321]
[1742702708090,7.74257926,2008.6,2008.1,0.5]
[1742702709513,1.00279103,2008.6,2008.1,2.26119823]
[1742702709828,4.76119823,2008.7,2008.2,1.76119823]
[1742702710004,9.73954823,2008.7,2008.1,2.26119823]
[1742702710194,1.76119823,2008.6,2008.1,0.5]
[1742702710526,2.53689823,2008.6,2008.1,2.26119823]
[1742702710697,0.7757,2008.6,2008.1,2.26119823]
[1742702711020,2.53689823,2008.6,2008.1,2.26119823]
[1742702711787,2.53689823,2008.6,2008.1,0.5]
[1742702712002,4.16138544,2008.6,2008.1,0.5]
[1742702713025,1.62448721,2008.6,2008.1,7.24093823]
[1742702713191,4.76119823,2008.7,2008.1,7.24093823]
[1742702713817,4.76119823,2008.7,2008.2,6.74076823]
[1742702714022,3.0,2008.7,2008.2,6.74076823]
[1742702714228,4.76119823,2008.7,2008.2,6.74076823]
[1742702714723,4.76119823,2008.7,2008.1,7.24093823]
[1742702714919,1.76119823,2008.6,2008.1,2.26119823]
[1742702715123,2.55209823,2008.6,2008.1,0.5]
[1742702716535,5.88784844,2008.7,2008.2,6.74076823]
[1742702716744,5.88784844,2008.7,2008.1,12.22072823]
[1742702716944,5.88784844,2008.7,2008.1,12.22060823]
[1742702717443,5.88784844,2008.7,2008.1,7.24087823]
[1742702717644,5.88784844,2008.7,2008.1,12.22058823]
[1742702717831,5.88784844,2008.7,2008.1,7.24087823]
[1742702720013,0.7909,2008.6,2008.1,7.24087823]
[1742702720842,0.7909,2008.6,2008.1,2.26119823]
[1742702721142,1.68945168,2008.6,2008.1,2.26119823]
[1742702722322,3.45064991,2008.6,2008.1,0.5]
[1742702722838,2.55209823,2008.3,2008.0,26.322]
[1742702723924,1.76119823,2008.2,2008.0,26.322]
[1742702724125,1.55106282,2008.2,2008.0,26.322]
[1742702725945,3.31226105,2008.2,2008.0,26.322]
[1742702726147,1.55106282,2008.2,2008.0,26.322]
[1742702726725,3.31226105,2008.2,2008.0,26.322]
[1742702727747,0.7909,2008.1,2008.0,26.322]
[1742702728546,2.19710811,2008.1,2008.0,26.322]
[1742702729651,3.95830634,2008.1,2008.0,26.322]
[1742702729956,8.93813634,2008.1,2008.0,26.322]
[1742702730739,2.19710811,2008.1,2008.0,26.322]
[1742702733951,3.95830634,2008.1,2008.0,26.322]
[1742702734658,8.93813634,2008.1,2008.0,26.322]
[1742702735541,11.93813634,2008.1,2008.0,26.322]
[1742702737057,11.93813634,2008.1,2007.5,28.59019823]
[1742702738168,3.0,2008.0,2007.5,28.59019823]
[1742702738325,6.45296986,2008.0,2007.5,28.59019823]
[1742702738958,11.43314986,2008.0,2007.5,28.59019823]
[1742702739758,0.7866,2007.9,2007.5,28.59019823]
[1742702739971,0.7866,2007.9,2007.5,26.829]
[1742702740558,0.7866,2007.9,2007.5,28.59019823]
[1742702746867,0.7866,2007.9,2007.5,33.57141823]
[1742702751677,0.7866,2007.9,2007.6,1.76119823]
[1742702751972,0.7866,2007.9,2007.5,28.59019823]
[1742702752266,0.7866,2007.9,2007.6,1.76119823]
[1742702752659,0.7581,2008.1,2007.8,1.76119823]
[1742702754967,0.7581,2008.1,2007.7,2.26119823]
[1742702756083,0.7581,2008.1,2007.8,1.76119823]
[1742702758006,3.7581,2008.3,2007.8,6.74175823]
[1742702758157,5.30587982,2008.3,2007.8,1.76119823]
[1742702758497,7.06707805,2008.3,2007.7,7.24179823]
[1742702758657,5.30587982,2008.3,2007.8,1.76119823]
[1742702759702,7.06707805,2008.3,2007.8,1.76119823]
[1742702760055,7.06707805,2008.3,2007.7,7.24179823]
[1742702760261,1.70254681,2008.2,2007.7,7.24179823]
[1742702760703,1.70254681,2008.2,2007.8,1.76119823]
[1742702766305,0.7566,2008.1,2007.8,1.76119823]
[1742702767318,0.7566,2008.1,2007.7,6.74179823]
[1742702770581,0.7566,2008.1,2007.7,33.07379823]
[1742702770992,0.7566,2008.0,2007.7,28.09319823]
[1742702771963,0.7566,2008.0,2007.7,26.332]
[1742702773877,1.76119823,2008.0,2007.7,26.332]
[1742702774089,0.8123,2007.9,2007.7,26.332]
[1742702775602,0.8123,2007.9,2007.5,33.07450823]
[1742702777905,0.8123,2007.9,2007.6,1.76119823]
[1742702779206,0.8123,2007.9,2007.6,6.74225823]
[1742702779398,0.8123,2007.9,2007.7,1.76119823]
[1742702779909,0.8123,2007.9,2007.6,6.74225823]
[1742702780477,0.8123,2007.9,2007.6,1.76119823]
[1742702781395,1.98963067,2007.9,2007.6,1.76119823]
[1742702783511,1.98963067,2007.9,2007.5,28.09319823]
[1742702786214,1.98963067,2007.9,2007.6,1.76119823]
[1742702786589,1.98963067,2007.9,2007.5,33.07444823]
[1742702787018,1.98963067,2007.9,2007.5,28.09319823]
[1742702787917,0.7917,2007.8,2007.5,28.09319823]
[1742702791344,0.7917,2007.8,2007.5,26.332]
[1742702791518,0.7669,2007.6,2007.5,26.332]
[1742702797502,5.74797,2007.6,2007.5,26.332]
[1742702797705,7.50476823,2007.6,2007.5,26.332]
[1742702803626,11.49695642,2007.6,2007.5,26.332]
[1742702803942,13.75991025,2007.6,2007.5,26.332]
[1742702804144,4.98163,2007.4,2007.1,0.01]
[1742702807340,0.7503,2007.3,2007.1,0.01]
[1742702807911,5.73216,2007.3,2007.1,0.01]
[1742702808508,7.49335823,2007.3,2007.1,0.01]
[1742702808720,8.74085705,2007.3,2007.1,0.01]
[1742702808914,4.98206,2007.2,2007.1,0.01]
[1742702809317,9.74325823,2007.2,2007.1,0.01]
[1742702809510,10.49355823,2007.2,2007.1,0.01]
[1742702812027,11.50319352,2007.2,2007.1,0.01]
[1742702812214,13.27644875,2007.2,2007.1,0.01]
[1742702812846,13.64462083,2007.2,2007.1,0.01]
[1742702814944,14.19462083,2007.2,2007.1,0.01]
[1742702826350,15.95581906,2007.2,2007.1,0.01]
[1742702829427,4.9838,2006.5,2006.4,26.34]
[1742702829760,6.74499823,2006.5,2006.4,26.34]
[1742702830063,4.9838,2006.5,2006.4,26.34]
[1742702831234,3.0,2006.7,2006.5,0.5]
[1742702831439,0.97892046,2006.8,2006.5,2.26119823]
[1742702831639,14.72714823,2006.9,2006.5,0.5]
[1742702831838,16.19986305,2006.9,2006.5,0.5]
[1742702832234,4.9832,2006.8,2006.5,0.5]
[1742702832561,3.0,2006.7,2006.5,0.5]
[1742702833129,4.76119823,2006.7,2006.5,0.5]
[1742702833329,3.0,2006.7,2006.5,0.5]
[1742702833860,7.98331,2006.7,2006.5,0.5]
[1742702835472,3.0,2006.7,2006.5,0.5]
[1742702836038,7.9832,2006.8,2006.5,0.5]
[1742702836237,4.9832,2006.8,2006.5,0.5]
[1742702836452,3.0,2006.7,2006.5,0.5]
[1742702836850,4.83692015,2006.7,2006.5,0.5]
[1742702837050,9.82025015,2006.7,2006.5,0.5]
[1742702837371,9.82025015,2006.7,2006.4,26.34]
[1742702838167,4.98357,2006.6,2006.4,26.34]
[1742702838654,3.0,2006.5,2006.4,26.34]
[1742702838856,5.15092637,2006.5,2006.2,0.5]
[1742702840268,6.15078661,2006.5,2006.2,0.5]
[1742702842079,11.13460661,2006.5,2006.2,0.5]
[1742702842578,10.13474637,2006.5,2006.2,0.5]
[1742702843386,2.15092637,2006.5,2006.2,0.5]
[1742702845346,2.9425735,2006.9,2006.2,0.5]
[1742702845563,3.0,2006.8,2006.4,0.5]
[1742702846286,4.98302,2006.9,2006.4,0.5]
[1742702846589,3.7054735,2007.1,2006.5,0.5]
[1742702846762,3.0,2006.9,2006.5,5.48356]
[1742702846946,3.0,2006.9,2006.5,0.5]
[1742702848092,0.99163488,2006.8,2006.5,0.5]
[1742702849397,2.38735437,2006.8,2006.5,0.5]
[1742702849692,7.37050437,2006.8,2006.5,0.5]
[1742702850370,2.38735437,2006.8,2006.5,0.5]
[1742702852294,7.37040437,2006.8,2006.5,0.5]
[1742702853494,2.38735437,2006.8,2006.5,0.5]
[1742702857095,4.15284209,2006.8,2006.5,0.5]
[1742702857302,2.38735437,2006.8,2006.5,0.5]
[1742702858099,4.76548772,2007.0,2006.6,4.98351]
[1742702858305,4.76548772,2007.0,2006.5,5.48369]
[1742702858603,1.01055971,2006.9,2006.5,5.48369]
[1742702858922,1.01055971,2006.9,2006.5,5.53352292]
[1742702859111,1.01055971,2006.9,2006.5,5.48369]
[1742702859777,4.77325523,2007.2,2006.8,4.98289]
[1742702859976,4.76548772,2007.1,2006.8,0.5]
[1742702862213,9.74781772,2007.1,2006.8,0.5]
[1742702862739,1.76548772,2007.0,2006.6,5.48353]
[1742702862959,9.74781772,2007.1,2006.6,5.48353]
[1742702863125,1.39756986,2007.0,2006.6,5.48353]
[1742702866743,1.39756986,2007.0,2006.6,0.5]
[1742702868446,1.39756986,2007.0,2006.6,5.48354]
[1742702868646,2.20416986,2007.0,2006.6,0.5]
[1742702868941,1.69345076,2006.9,2006.5,4.98378]
[1742702870356,1.69345076,2006.9,2006.5,6.74926772]
[1742702871655,1.69345076,2006.9,2006.6,5.48345]
[1742702872156,1.69345076,2006.9,2006.6,0.5]
[1742702872359,1.69345076,2006.9,2006.6,26.847]
[1742702872856,1.69345076,2006.9,2006.6,31.8305]
[1742702873153,0.8066,2007.0,2006.6,31.8305]
[1742702873966,4.76548772,2007.1,2006.7,4.98326]
[1742702874839,4.76548772,2007.1,2006.6,31.83051]
[1742702875153,9.74782772,2007.1,2006.6,31.83051]
[1742702877367,4.76548772,2007.1,2006.6,31.83046]
[1742702877569,9.74782772,2007.1,2006.6,31.83046]
[1742702877734,11.44019565,2007.1,2006.6,31.83046]
[1742702878973,0.7683,2007.0,2006.6,31.83046]
[1742702882762,0.7683,2007.0,2006.6,36.8139]
[1742702882973,0.7683,2007.0,2006.6,31.83044]
[1742702884275,0.7683,2007.0,2006.7,4.98311]